bitfinex/quotes_ETHUSD_20250422
["timestamp","ask_amount","ask_price","bid_price","bid_amount"]
[1745328935979,6.11733039,1634.7,1634.6,6.726]
[1745328936179,12.23371987,1634.9,1634.6,6.726]
[1745328936674,6.11733039,1634.7,1634.6,6.726]
[1745328937098,13.01757185,1635.1,1634.6,6.726]
[1745328937418,6.11524157,1635.3,1634.7,3.06116636]
[1745328937619,6.11524157,1635.3,1634.7,3.0]
[1745328937987,12.2314208,1635.2,1634.7,3.0]
[1745328938206,6.11567575,1635.2,1634.7,4.50663913]
[1745328938368,6.1153391,1635.3,1634.7,4.50663913]
[1745328938568,12.23074503,1635.3,1634.8,0.06115805]
[1745328938811,6.11580689,1635.2,1634.7,4.50663913]
[1745328938975,6.11577462,1635.2,1634.7,4.50663913]
[1745328939178,6.11647119,1635.0,1634.7,4.50663913]
[1745328939375,6.11647119,1635.0,1634.6,6.726]
[1745328939705,6.11673736,1634.9,1634.6,6.726]
[1745328940411,6.11733039,1634.7,1634.6,6.726]
[1745328940786,6.9015,1635.1,1634.6,6.726]
[1745328940787,6.1164253,1635.0,1634.6,6.726]
[1745328941112,12.23290216,1635.0,1634.7,0.06116939]
[1745328941321,6.72736085,1635.2,1634.6,6.726]
[1745328941525,6.1156626,1635.2,1634.6,6.726]
[1745328942084,6.1156626,1635.2,1634.6,12.06639131]
[1745328942809,6.11597276,1635.1,1634.6,12.06639131]
[1745328943009,6.1156626,1635.2,1635.1,0.00944314]
[1745328943484,6.8798626,1635.2,1635.1,0.00944314]
[1745328943689,8.17937932,1635.2,1635.1,0.00944314]
[1745328944122,6.11762053,1634.7,1634.6,6.546]
[1745328944326,6.11712851,1634.8,1634.6,6.546]
[1745328944576,6.11712851,1634.8,1634.6,7.01364911]
[1745328944577,6.11733039,1634.7,1634.6,7.01364911]
[1745328944724,6.11712851,1634.8,1634.6,7.01364911]
[1745328945173,6.11681189,1634.9,1634.6,7.01364911]
[1745328945331,6.11620795,1635.0,1634.6,7.01364911]
[1745328945531,6.11679202,1634.9,1634.6,7.01364911]
[1745328946069,6.11696566,1634.8,1634.6,7.01364911]
[1745328946767,6.11733039,1634.7,1634.6,7.01364911]
[1745328946975,6.11636915,1635.0,1634.6,7.01364911]
[1745328946976,6.11672793,1634.9,1634.6,7.01364911]
[1745328947269,6.11715544,1634.8,1634.6,7.01364911]
[1745328947436,6.11733039,1634.7,1634.6,7.01364911]
[1745328947773,6.11715544,1634.8,1634.6,7.01364911]
[1745328948184,6.11733039,1634.7,1634.6,7.01364911]
[1745328951662,7.49307098,1634.8,1634.6,7.01364911]
[1745328951663,6.11715544,1634.8,1634.6,7.01364911]
[1745328951797,12.23440781,1634.8,1634.6,7.01364911]
[1745328952001,6.11733039,1634.7,1634.6,7.01364911]
[1745328952401,6.11588424,1635.1,1634.6,7.01364911]
[1745328952726,6.11534845,1635.3,1634.7,5.93060132]
[1745328952896,6.11534845,1635.3,1634.9,5.16807752]
[1745328953095,6.11583389,1635.1,1635.0,7.0088706]
[1745328953618,6.11526648,1635.3,1635.0,7.0088706]
[1745328953976,6.11526648,1635.3,1635.0,6.546]
[1745328954178,6.11493377,1635.4,1635.1,0.46307021]
[1745328954711,6.11497544,1635.4,1635.1,0.46307021]
[1745328955011,6.11470728,1635.5,1635.1,1.16397723]
[1745328955451,6.11488915,1635.4,1635.1,1.16397723]
[1745328955599,6.11467588,1635.5,1635.1,1.16397723]
[1745328956174,6.11485852,1635.4,1635.1,0.46307021]
[1745328956375,6.11485852,1635.4,1635.0,6.546]
[1745328956573,6.11485852,1635.4,1635.2,0.46271779]
[1745328956774,6.11474691,1635.4,1635.0,6.546]
[1745328957315,6.11455203,1635.5,1635.1,5.16807752]
[1745328957499,6.11382336,1635.7,1635.3,5.16807752]
[1745328957703,6.11433812,1635.5,1635.4,7.00457196]
[1745328959615,6.88263812,1635.5,1635.4,7.00457196]
[1745328959974,6.11583389,1635.1,1635.0,6.544]
[1745328960179,6.11672628,1634.9,1634.7,6.544]
[1745328960379,6.1169562,1634.8,1634.7,11.71207752]
[1745328960599,6.1169562,1634.8,1634.7,6.544]
[1745328961320,6.11673145,1634.9,1634.7,6.544]
[1745328961820,6.11635876,1635.0,1634.7,6.544]
[1745328962002,6.11635876,1635.0,1634.8,0.6544]
[1745328962206,6.11639681,1635.0,1634.7,11.71207752]
[1745328962406,6.1159888,1635.1,1634.9,5.16807752]
[1745328962701,6.11658205,1634.9,1634.7,6.544]
[1745328962902,6.1169562,1634.8,1634.7,6.544]
[1745328963525,6.11845325,1634.4,1634.3,6.545]
[1745328963729,6.12074602,1633.8,1633.7,6.545]
[1745328964249,6.1198787,1634.1,1633.3,11.71307752]
[1745328964452,6.1217008,1633.6,1633.3,11.71307752]
[1745328964641,6.11957652,1634.1,1633.3,6.545]
[1745328964804,6.12052232,1633.9,1633.4,3.06121396]
[1745328965000,12.24112954,1633.9,1633.5,5.16807752]
[1745328965340,6.12109624,1633.7,1633.4,4.47742915]
[1745328965642,6.12010116,1634.0,1633.4,4.47742915]
[1745328965813,6.11788768,1634.6,1633.4,4.47742915]
[1745328965814,6.11832782,1634.5,1633.8,5.33425169]
[1745328966013,6.88450795,1635.0,1634.1,5.33425169]
[1745328966243,6.88450795,1635.0,1634.2,3.59460464]
[1745328966244,7.57310915,1635.0,1634.2,3.59460464]
[1745328966412,12.23522492,1634.7,1634.3,6.546]
[1745328966603,12.23521541,1634.7,1634.3,6.546]
[1745328966805,6.11752151,1634.7,1634.3,6.546]
[1745328967031,6.11774472,1634.6,1634.3,6.546]
[1745328967227,6.11774472,1634.6,1634.3,7.5006]
[1745328967512,6.11680203,1634.9,1634.4,0.38875485]
[1745328967727,6.11720794,1634.8,1634.3,7.5006]
[1745328967925,6.11753404,1634.7,1634.5,0.38815722]
[1745328968140,6.11770463,1634.6,1634.3,7.5006]
[1745328968714,6.11753404,1634.7,1634.3,7.5006]
[1745328968913,6.11753404,1634.7,1634.4,0.06117513]
[1745328969116,6.11753404,1634.7,1634.3,7.5006]
[1745328969446,6.11781938,1634.6,1634.4,3.0]
[1745328969655,6.11773131,1634.6,1634.4,3.0]
[1745328970015,6.11753404,1634.7,1634.4,3.06117618]
[1745328970216,6.11753404,1634.7,1634.4,3.0]
[1745328970628,6.11717853,1634.8,1634.4,3.0]
[1745328970629,12.2335929,1634.9,1634.5,0.06117514]
[1745328970866,6.11719747,1634.8,1634.4,9.38431169]
[1745328971171,6.11765386,1634.7,1634.4,4.05006]
[1745328971475,12.23532448,1634.7,1634.4,3.0]
[1745328971769,6.11765386,1634.7,1634.4,3.0]
[1745328971924,6.11717633,1634.8,1634.5,0.06117368]
[1745328972126,6.11735419,1634.7,1634.4,3.0]
[1745328972355,6.11735419,1634.7,1634.4,3.06117369]
[1745328972564,6.11735419,1634.7,1634.4,4.02189106]
[1745328972863,6.11735419,1634.7,1634.4,3.96071737]
[1745328973025,12.23495624,1634.7,1634.4,3.96071737]
[1745328973227,6.88471456,1635.0,1634.3,6.546]
[1745328973426,12.23597274,1634.6,1634.3,6.546]
[1745328973631,6.11845325,1634.4,1633.9,6.44]
[1745328973943,6.11995104,1634.0,1633.9,6.44]
[1745328974126,6.89444328,1634.3,1633.9,6.44]
[1745328974337,6.11798481,1634.6,1634.0,0.55]
[1745328974535,6.11905116,1634.3,1633.9,6.44]
[1745328974742,6.11905116,1634.3,1634.0,3.0]
[1745328975002,6.89477277,1634.2,1633.4,6.55294878]
[1745328975277,6.1218243,1633.5,1633.4,6.441]
[1745328977377,6.12119101,1633.7,1633.4,6.441]
[1745328977690,6.12253559,1633.4,1633.1,20.164]
[1745328978013,6.12294881,1633.2,1633.0,6.441]
[1745328978221,6.124844,1632.7,1632.4,6.442]
[1745328978507,12.2510018,1632.6,1632.4,6.442]
[1745328978706,6.12495954,1632.7,1632.4,6.442]
[1745328978864,0.7754,1632.8,1632.4,6.442]
[1745328979066,6.12557427,1632.5,1632.4,6.442]
[1745328979312,0.7754,1632.8,1632.4,6.442]
[1745328979485,6.12549758,1632.6,1632.4,6.442]
[1745328979874,6.12557427,1632.5,1632.4,6.442]
[1745328980766,6.12478645,1632.8,1632.4,6.50325586]
[1745328980965,6.12483548,1632.7,1632.4,9.54002554]
[1745328981190,6.12449007,1632.8,1632.4,9.54002554]
[1745328981397,6.12557427,1632.5,1632.4,6.87259995]
[1745328981672,6.12557427,1632.5,1632.4,0.43059995]
[1745328982001,6.12618613,1632.4,1632.1,6.444]
[1745328982204,6.12557427,1632.5,1632.4,0.43286799]
[1745328982386,6.12603398,1632.4,1632.1,6.444]
[1745328982596,6.12580932,1632.5,1632.4,0.43263883]
[1745328982893,6.12600516,1632.4,1632.1,6.444]
[1745328983204,6.12600516,1632.4,1632.2,0.43351849]
[1745328983205,6.12633985,1632.3,1632.2,0.43351849]
[1745328983570,6.12670015,1632.2,1632.1,6.444]
[1745328983782,6.12633985,1632.3,1632.2,0.43156301]
[1745328983983,6.12670015,1632.2,1632.1,6.87600283]
[1745328984197,6.12652086,1632.3,1631.8,6.446]
[1745328984377,6.12586064,1632.5,1631.9,3.6446]
[1745328984585,6.12581454,1632.5,1631.9,3.6446]
[1745328984784,6.12611588,1632.4,1631.9,3.6446]
[1745328984985,6.12637494,1632.3,1631.9,3.6446]
[1745328985469,6.12637494,1632.3,1631.9,3.0]
[1745328985975,6.12669389,1632.3,1632.0,0.06126679]
[1745328986185,6.12669389,1632.3,1631.9,6.446]
[1745328986383,0.7754,1632.6,1631.9,6.446]
[1745328986603,6.12581587,1632.5,1631.9,6.446]
[1745328986803,6.12581587,1632.5,1632.0,0.6446]
[1745328986978,6.90086856,1632.6,1632.0,0.6446]
[1745328987307,6.12571373,1632.5,1632.0,0.6446]
[1745328987720,6.12606641,1632.4,1631.9,6.446]
[1745328987888,6.12648634,1632.3,1631.9,6.446]
[1745328988275,6.12679579,1632.2,1631.9,6.446]
[1745328988612,6.12620525,1632.4,1631.9,6.446]
[1745328988774,0.7754,1632.6,1631.9,6.446]
[1745328988973,0.768,1633.0,1632.1,5.88425169]
[1745328989195,6.12542132,1632.6,1632.0,8.76537889]
[1745328989494,6.12601277,1632.4,1632.1,0.39257793]
[1745328989699,6.12496669,1632.7,1632.1,0.39257793]
[1745328989894,6.12407373,1632.9,1632.1,0.39257793]
[1745328990074,6.12501236,1632.7,1632.1,0.39257793]
[1745328990292,0.61240737,1632.8,1632.2,0.55]
[1745328990493,6.12545936,1632.6,1632.3,6.83985824]
[1745328990688,6.12458647,1632.8,1632.3,6.83985824]
[1745328991011,6.12567596,1632.5,1632.3,6.83985824]
[1745328991207,6.12588252,1632.5,1632.3,6.83985824]
[1745328991507,6.12589699,1632.5,1632.3,6.448]
[1745328991707,6.73839109,1632.5,1632.3,6.448]
[1745328992011,6.12594952,1632.4,1632.3,6.448]
[1745328992204,6.12594952,1632.4,1632.0,6.448]
[1745328992408,6.12645209,1632.3,1632.0,6.448]
[1745328993005,0.768,1632.4,1632.0,6.448]
[1745328993211,6.12634128,1632.3,1632.0,6.448]
[1745328993410,0.61263413,1632.2,1632.0,6.448]
[1745328993803,6.12652851,1632.3,1632.0,6.448]
[1745328994000,6.89411835,1632.4,1632.0,6.448]
[1745328994218,6.12611835,1632.4,1632.0,6.448]
[1745328994382,6.12585931,1632.5,1632.0,6.448]
[1745328994584,6.12658042,1632.3,1632.0,6.448]
[1745328994791,6.12707554,1632.1,1631.7,9.448]
[1745328995111,6.12765871,1632.0,1631.7,6.448]
[1745328995281,6.12766945,1632.0,1631.7,6.448]
[1745328995477,12.25540729,1632.0,1631.7,6.448]
[1745328995716,12.25548732,1632.0,1631.7,6.448]
[1745328995915,0.61265804,1632.3,1631.8,3.06128008]
[1745328996217,6.12673028,1632.2,1631.8,3.0]
[1745328996418,6.12644722,1632.3,1631.8,3.0]
[1745328996912,6.12656695,1632.3,1631.8,3.0]
[1745328997312,6.8942129,1632.4,1631.8,3.0]
[1745328997518,6.12573931,1632.5,1631.9,5.24437979]
[1745328997697,6.8933902,1632.6,1632.0,0.52443798]
[1745328997698,6.12601156,1632.4,1632.0,0.52443798]
[1745328998015,0.768,1632.6,1632.1,6.449]
[1745328998192,6.89334747,1632.6,1632.1,6.449]
[1745328998585,6.89332695,1632.6,1632.1,6.449]
[1745328998795,6.12497503,1632.7,1632.2,3.06125833]
[1745328999107,6.12563684,1632.5,1632.2,3.0]
[1745328999285,6.12540784,1632.6,1632.2,3.06126364]
[1745328999826,0.61254078,1632.6,1632.1,6.449]
[1745329000021,0.61254078,1632.6,1631.6,20.177]
[1745329000022,6.12770444,1632.0,1631.6,20.177]
[1745329000232,6.12855378,1631.8,1631.6,20.177]
[1745329000522,6.12895317,1631.6,1631.5,6.449]
[1745329000723,6.12745902,1632.0,1631.5,6.449]
[1745329000884,6.12887308,1631.7,1631.5,6.449]
[1745329001090,6.12860138,1631.7,1631.5,6.449]
[1745329001318,6.12861445,1631.7,1631.5,6.449]
[1745329001526,6.12839562,1631.8,1631.5,6.449]
[1745329002599,6.12849742,1631.8,1631.5,6.449]
[1745329002805,6.12805417,1631.9,1631.5,6.449]
[1745329003606,6.12765117,1632.0,1631.5,6.449]
[1745329003803,6.12722122,1632.1,1631.6,3.0]
[1745329004030,6.12694552,1632.2,1631.6,3.40252052]
[1745329004526,6.12672798,1632.2,1631.7,0.55]
[1745329004832,6.12611744,1632.4,1631.8,0.39969725]
[1745329004996,6.12643685,1632.3,1631.9,6.508]
[1745329005312,6.12594952,1632.4,1632.0,0.39870155]
[1745329005513,6.1237104,1633.0,1632.1,0.06126583]
[1745329005716,6.12458128,1632.8,1632.2,0.39529163]
[1745329005929,6.12444879,1632.8,1632.3,6.508]
[1745329006127,6.12529291,1632.6,1632.4,0.39553378]
[1745329006428,6.12529291,1632.6,1632.3,6.508]
[1745329006429,6.12594952,1632.4,1632.3,6.508]
[1745329006632,0.7869,1632.5,1632.3,6.508]
[1745329006801,6.1258438,1632.5,1632.3,6.508]
[1745329007211,6.12536709,1632.6,1632.3,6.508]
[1745329007429,0.7869,1632.7,1632.3,6.508]
[1745329007633,0.7869,1633.0,1632.4,3.0]
[1745329007931,6.12427162,1632.9,1632.4,3.0]
[1745329008096,6.9108263,1633.0,1632.4,3.9508]
[1745329008297,6.1245588,1632.8,1632.4,3.9508]
[1745329008500,6.12424895,1632.9,1632.4,3.9508]
[1745329008694,6.12311994,1633.2,1632.5,0.55]
[1745329008896,6.12312371,1633.2,1632.5,0.55]
[1745329009099,0.7869,1633.7,1632.7,9.67472918]
[1745329009330,6.12144955,1633.6,1632.9,3.0]
[1745329009500,12.2432251,1633.6,1632.9,3.0]
[1745329009714,6.12203367,1633.5,1632.9,3.0]
[1745329009913,6.90814032,1633.7,1633.0,0.06122245]
[1745329010222,1.47771403,1633.7,1633.0,0.84091038]
[1745329010425,6.12186924,1633.5,1633.0,0.84091038]
[1745329010813,6.12209077,1633.5,1633.0,0.84091038]
[1745329011009,6.81212972,1633.7,1633.0,0.84091038]
[1745329011213,6.12201787,1633.5,1633.0,0.84091038]
[1745329012034,6.12146378,1633.6,1633.1,0.06122474]
[1745329012902,6.12184909,1633.5,1633.0,0.84091038]
[1745329013109,6.12184909,1633.5,1633.2,6.506]
[1745329013312,2.01124587,1633.5,1633.2,6.506]
[1745329013509,8.13328209,1633.5,1633.2,6.506]
[1745329014036,7.34638209,1633.5,1633.2,6.506]
[1745329014227,6.1222569,1633.4,1633.2,6.506]
[1745329014709,12.24412236,1633.5,1633.2,6.506]
[1745329014909,6.12242515,1633.4,1633.2,6.506]
[1745329015507,6.12166359,1633.6,1633.2,6.506]
[1745329015905,6.12170703,1633.6,1633.2,6.506]
[1745329016144,6.12188843,1633.5,1633.2,6.506]
[1745329016442,6.12232477,1633.4,1633.2,6.506]
[1745329016652,6.12257393,1633.3,1633.2,6.506]
[1745329016823,6.12407373,1632.9,1632.1,31.6608306]
[1745329017014,0.61240737,1632.8,1632.3,6.505]
[1745329017345,6.12422571,1632.9,1632.3,6.505]
[1745329018045,6.12388515,1633.0,1632.4,3.0]
[1745329018216,6.12427074,1632.9,1632.4,3.0]
[1745329018415,6.12427074,1632.9,1632.3,6.505]
[1745329018416,6.12461719,1632.8,1632.3,6.505]
[1745329018754,6.12427471,1632.9,1632.4,3.0]
[1745329018951,6.12351743,1633.1,1632.5,0.34759631]
[1745329019250,6.90929147,1633.4,1632.6,0.55]
[1745329019411,6.12355906,1633.1,1632.7,6.505]
[1745329019614,6.12355906,1633.1,1632.7,6.85463154]
[1745329019819,6.12411201,1632.9,1632.7,6.85463154]
[1745329020324,6.90994094,1633.2,1632.7,6.85463154]
[1745329020526,6.12310462,1633.2,1632.7,6.85463154]
[1745329020954,6.12350018,1633.1,1632.7,6.85463154]
[1745329021117,6.90901144,1633.5,1632.7,6.85463154]
[1745329021317,6.505,1633.7,1632.7,6.85463154]
[1745329021318,6.9081413,1633.7,1632.9,5.89788137]
[1745329021548,6.12159153,1633.6,1633.0,0.34346769]
[1745329021717,0.7869,1633.7,1633.1,6.505]
[1745329021718,6.12202527,1633.5,1633.1,6.505]
[1745329021917,6.90813402,1633.7,1633.2,0.34505663]
[1745329022116,6.12234463,1633.4,1633.1,6.505]
[1745329022332,6.1216152,1633.6,1633.2,0.34641859]
[1745329022569,6.12184759,1633.5,1633.1,7.1555]
[1745329022716,6.1216152,1633.6,1633.2,0.34488581]
[1745329022717,6.12164602,1633.6,1633.2,0.34488581]
[1745329022916,6.12164602,1633.6,1633.1,7.1555]
[1745329023136,6.12088712,1633.8,1633.2,3.34512563]
[1745329023334,6.12086124,1633.8,1633.3,0.39572817]
[1745329023575,2.01067169,1634.3,1633.4,0.34321074]
[1745329023781,6.12011129,1634.0,1633.4,0.34321074]
[1745329023952,6.11958577,1634.1,1633.5,6.56520212]
[1745329024153,6.11958577,1634.1,1633.6,3.34157975]
[1745329024834,6.11958577,1634.1,1633.7,0.06119876]
[1745329025037,6.11871937,1634.4,1633.7,0.06119836]
[1745329025269,6.11962608,1634.1,1633.8,0.33999618]
[1745329025477,6.11921598,1634.2,1633.9,6.504]
[1745329025647,6.11906124,1634.3,1633.9,6.504]
[1745329025854,6.11920284,1634.2,1634.0,0.33374328]
[1745329027562,6.11957652,1634.1,1634.0,0.33374328]
[1745329027765,6.12144955,1633.6,1633.5,6.503]
[1745329027969,6.12076151,1633.8,1633.5,6.81207847]
[1745329028286,6.12064817,1633.9,1633.5,6.81207847]
[1745329028446,14.21040595,1634.1,1633.5,6.81207847]
[1745329028647,6.12144955,1633.6,1633.5,6.81207847]
[1745329029052,6.12054447,1633.9,1633.5,6.81207847]
[1745329029384,6.12011093,1634.0,1633.5,6.81207847]
[1745329029584,6.11974396,1634.1,1633.6,3.0]
[1745329030081,6.11978535,1634.1,1633.6,3.0]
[1745329030255,6.12006711,1634.0,1633.7,0.30935909]
[1745329030454,6.12015902,1634.0,1633.7,0.30935909]
[1745329030710,6.12015902,1634.0,1633.6,3.0]
[1745329030855,6.12015902,1634.0,1633.8,0.30899995]
[1745329031057,6.12015902,1634.0,1633.7,0.30879936]
[1745329031256,7.3441478,1634.0,1633.9,0.30792176]
[1745329031451,1.22398878,1634.0,1633.8,0.30844034]
[1745329031658,6.11972894,1634.1,1633.9,6.75260203]
[1745329032280,12.23961379,1634.1,1633.9,6.75260203]
[1745329032591,6.11995104,1634.0,1633.9,6.75260203]
[1745329032963,6.94265104,1634.0,1633.9,6.445]
[1745329033555,6.12168129,1633.6,1633.5,6.445]
[1745329033774,9.12168129,1633.6,1633.5,6.75523661]
[1745329033969,11.46867569,1633.6,1633.5,0.31023661]
[1745329034175,6.12294881,1633.2,1633.1,6.445]
[1745329034468,9.94564881,1633.2,1633.1,0.27563044]
[1745329034855,6.12444879,1632.8,1632.7,6.445]
[1745329035057,12.25164192,1632.5,1632.3,26.623]
[1745329035265,6.12594952,1632.4,1632.3,26.623]
[1745329035506,0.8227,1632.8,1632.3,26.623]
[1745329035815,6.12429456,1632.9,1632.4,0.06125538]
[1745329036160,6.12219909,1633.4,1632.4,5.34788137]
[1745329036405,6.12313386,1633.2,1632.5,0.55]
[1745329036562,6.12298152,1633.2,1632.5,3.55]
[1745329037319,6.12351562,1633.1,1632.5,3.0]
[1745329037473,6.12381977,1633.0,1632.5,0.83478814]
[1745329038005,12.24781638,1633.0,1632.5,3.83478814]
[1745329038234,6.12409151,1632.9,1632.5,3.0]
[1745329038720,6.94619352,1633.1,1632.5,3.0]
[1745329038928,6.12349352,1633.1,1632.5,3.0]
[1745329039310,6.12274687,1633.3,1632.6,0.55]
[1745329039512,12.2456359,1633.3,1632.7,6.446]
[1745329039823,12.24561754,1633.3,1632.8,0.6446]
[1745329040024,6.12274687,1633.3,1632.8,0.6446]
[1745329040331,0.8227,1633.8,1633.1,3.0]
[1745329040483,6.12190861,1633.5,1633.2,6.446]
[1745329040816,6.12163409,1633.6,1633.2,6.446]
[1745329041020,12.24345108,1633.6,1633.2,6.446]
[1745329041223,6.12163409,1633.6,1633.2,7.3906]
[1745329041420,6.12087662,1633.8,1633.3,3.0]
[1745329041787,6.1200385,1634.0,1633.2,6.446]
[1745329041987,6.1223158,1633.4,1633.2,6.446]
[1745329042191,6.12257393,1633.3,1633.2,6.446]
[1745329042605,7.3470629,1633.3,1633.2,6.446]
[1745329043086,7.3470629,1633.3,1632.8,6.446]
[1745329043087,6.12398094,1633.0,1632.8,6.446]
[1745329043291,6.12398094,1633.0,1632.9,0.27883908]
[1745329043490,1.22448897,1633.3,1632.8,6.446]
[1745329043491,7.3472343,1633.3,1632.8,6.446]
[1745329043724,6.12266195,1633.3,1632.9,0.27875916]
[1745329043928,1.40523462,1633.3,1632.9,0.27875916]
[1745329044246,6.94420229,1633.6,1633.0,0.061235]
[1745329044247,6.12206846,1633.5,1633.0,0.061235]
[1745329044460,6.12351381,1633.1,1632.9,0.27875916]
[1745329044602,6.12369871,1633.0,1632.8,6.446]
[1745329045024,6.12387982,1633.0,1632.8,6.446]
[1745329045337,6.12310067,1633.2,1632.8,6.446]
[1745329046431,6.12242678,1633.4,1632.9,0.06123235]
[1745329046635,6.8733,1633.7,1632.9,3.06123235]
[1745329046934,6.12120264,1633.7,1633.1,3.0]
[1745329047139,6.121655,1633.6,1633.2,6.50821848]
[1745329047323,6.12197781,1633.5,1633.2,6.447]
[1745329047989,6.121655,1633.6,1633.2,6.447]
[1745329048187,7.34595075,1633.6,1633.2,6.447]
[1745329048729,6.12204442,1633.5,1633.2,6.447]
[1745329048930,6.12204442,1633.5,1632.8,1.1946]
[1745329048931,6.12316287,1633.2,1633.0,6.447]
[1745329049100,6.12278178,1633.3,1633.0,6.447]
[1745329049631,6.12308961,1633.2,1633.0,6.447]
[1745329049831,6.12278178,1633.3,1633.0,6.447]
[1745329050443,6.11401708,1633.3,1633.0,6.447]
[1745329050652,0.7933,1633.7,1633.1,3.0]
[1745329050944,6.12210687,1633.5,1633.1,3.0]
[1745329051233,6.12146262,1633.6,1633.1,3.0]
[1745329052336,6.12129118,1633.7,1633.1,3.0]
[1745329052639,6.122544,1633.4,1633.1,3.0]
[1745329052822,6.12332374,1633.1,1633.0,6.447]
[1745329053025,6.12309823,1633.2,1633.0,6.447]
[1745329053626,6.12332374,1633.1,1633.0,6.447]
[1745329054325,7.34796594,1633.1,1633.0,6.68684927]
[1745329054695,7.34796594,1633.1,1633.0,0.23984927]
[1745329054696,8.10056594,1633.1,1633.0,0.23984927]
[1745329054895,6.12407373,1632.9,1632.8,6.446]
[1745329055135,6.12444879,1632.8,1632.4,6.446]
[1745329055317,6.12557427,1632.5,1632.4,6.446]
[1745329055636,6.12594952,1632.4,1632.1,6.447]
[1745329055837,6.1262814,1632.4,1632.1,6.447]
[1745329056137,6.12640968,1632.3,1632.1,6.447]
[1745329056307,6.12771645,1632.0,1631.8,6.447]
[1745329056504,6.12782645,1631.9,1631.8,6.447]
[1745329056720,6.12820198,1631.8,1631.7,0.5]
[1745329057119,7.35380482,1631.8,1631.7,0.5]
[1745329057332,6.12820198,1631.8,1631.7,0.5]
[1745329058040,6.1300803,1631.3,1631.2,6.447]
[1745329058339,6.13118584,1631.1,1630.9,0.103496]
[1745329058633,3.7526,1631.4,1630.9,0.103496]
[1745329058839,6.13120784,1631.0,1630.9,0.103496]
[1745329059512,7.3574211,1631.0,1630.9,0.103496]
[1745329059713,8.1100211,1631.0,1630.9,0.103496]
[1745329061117,6.13326917,1630.5,1630.1,20.183]
[1745329061358,6.1327347,1630.6,1630.2,0.27369513]
[1745329061661,12.21174375,1630.9,1630.0,3.55]
[1745329061811,6.13121112,1631.0,1630.3,0.29267732]
[1745329062011,6.13220993,1630.8,1630.2,3.0]
[1745329062238,6.13220993,1630.8,1630.4,0.29131527]
[1745329062556,6.13220993,1630.8,1630.5,0.29063866]
[1745329062766,6.13135548,1631.0,1630.5,6.388]
[1745329062920,6.13333651,1630.5,1630.1,0.355]
[1745329063249,6.13333651,1630.5,1630.0,3.0]
[1745329063464,6.13257273,1630.7,1630.0,3.0]
[1745329063771,6.1329631,1630.6,1630.0,3.0]
[1745329064062,6.13259939,1630.7,1630.1,0.29180578]
[1745329064214,15.21122617,1631.0,1630.1,0.29180578]
[1745329064215,6.13150478,1631.0,1630.2,3.55]
[1745329064414,0.7616,1631.4,1630.4,3.55]
[1745329064652,6.12954078,1631.5,1630.7,3.55]
[1745329064858,6.12909192,1631.6,1631.0,0.55]
[1745329065068,12.96912499,1632.0,1631.0,1.43978814]
[1745329065359,6.12896628,1631.6,1631.1,0.34626518]
[1745329065518,6.12833246,1631.8,1631.3,3.0]
[1745329065725,6.12833246,1631.8,1631.4,0.34470407]
[1745329065949,6.12836591,1631.8,1631.4,0.28340925]
[1745329066148,6.12727075,1632.1,1631.5,5.40916674]
[1745329066458,6.12738232,1632.1,1631.6,9.66854486]
[1745329066627,6.12534144,1632.6,1631.6,9.66854486]
[1745329066827,6.12766044,1632.0,1631.6,9.66854486]
[1745329067150,6.12657884,1632.3,1631.7,0.55]
[1745329067450,6.12681473,1632.2,1631.8,0.2747569]
[1745329067655,6.12559812,1632.5,1631.8,0.2747569]
[1745329067855,6.12710439,1632.1,1631.8,0.2747569]
[1745329068151,6.12782645,1631.9,1631.8,0.2747569]
[1745329068350,6.12782645,1631.9,1631.6,9.389]
[1745329068532,6.12782645,1631.9,1631.7,0.2732458]
[1745329068730,6.12767707,1632.0,1631.7,0.2732458]
[1745329068925,6.12691326,1632.2,1631.7,1.30075312]
[1745329069124,6.12691326,1632.2,1631.7,1.23947038]
[1745329069433,6.12764087,1632.0,1631.7,0.2732458]
[1745329070034,6.12773798,1632.0,1631.7,0.2732458]
[1745329070441,6.12767929,1632.0,1631.7,0.2732458]
[1745329070741,6.12813851,1631.9,1631.7,0.2732458]
[1745329070927,6.1275152,1632.0,1631.7,0.2732458]
[1745329071328,6.12726193,1632.1,1631.7,0.2732458]
[1745329071627,6.12620274,1632.4,1632.0,3.0]
[1745329071834,6.12623253,1632.4,1632.1,6.389]
[1745329072032,6.12623253,1632.4,1632.1,6.65925002]
[1745329072359,6.12670015,1632.2,1632.1,6.65925002]
[1745329072572,6.12670015,1632.2,1632.1,0.27025002]
[1745329072770,6.12757159,1632.0,1631.8,6.389]
[1745329072938,6.12727611,1632.1,1631.9,0.26406614]
[1745329073124,6.1274155,1632.1,1631.8,6.389]
[1745329073325,7.3522032,1632.2,1631.9,0.26323382]
[1745329073521,0.7561,1632.7,1631.8,6.389]
[1745329073873,6.12598155,1632.4,1631.9,3.8148373]
[1745329074345,6.12648921,1632.3,1631.9,3.2648373]
[1745329074661,6.12694797,1632.2,1631.9,3.2648373]
[1745329075521,6.12686869,1632.2,1631.9,3.2648373]
[1745329076270,6.11804495,1632.2,1631.9,3.2648373]
[1745329076661,6.12597967,1632.4,1631.9,3.2648373]
[1745329076858,6.12745098,1632.0,1631.9,0.2648373]
[1745329077239,6.12745098,1632.0,1631.8,6.389]
[1745329077567,6.12782645,1631.9,1631.8,6.389]
[1745329078269,12.20607629,1632.4,1631.9,3.0]
[1745329078573,6.12634918,1632.3,1631.9,3.0]
[1745329078789,6.12687996,1632.2,1632.0,0.26438043]
[1745329078952,6.12707554,1632.1,1632.0,0.26438043]
[1745329079162,6.73917341,1632.3,1631.8,6.389]
[1745329079509,6.12653849,1632.3,1631.9,3.2632354]
[1745329079650,0.8082,1632.7,1631.9,3.2632354]
[1745329079651,6.12575202,1632.5,1631.9,3.2632354]
[1745329079834,6.12519906,1632.6,1631.9,3.2632354]
[1745329080038,6.12685111,1632.2,1631.9,3.2632354]
[1745329080666,6.12685111,1632.2,1631.9,0.2632354]
[1745329080838,6.12692159,1632.2,1631.9,0.2632354]
[1745329081037,12.25393799,1632.2,1631.8,6.389]